bitfinex/quotes_BTCUSD_20250628
["timestamp","ask_amount","ask_price","bid_price","bid_amount"]
[1751152914853,1.34480067,107370.0,107360.0,0.00119038]
[1751152918967,1.03252978,107370.0,107360.0,0.00119038]
[1751152919171,1.34480067,107370.0,107360.0,0.00119038]
[1751152923362,1.65707156,107370.0,107360.0,0.00119038]
[1751152923830,1.34480067,107370.0,107360.0,0.00119038]
[1751152924243,1.03252978,107370.0,107360.0,0.00119038]
[1751152924426,1.34480067,107370.0,107360.0,0.00119038]
[1751152927105,1.32870067,107370.0,107360.0,0.00119038]
[1751152928761,1.34480067,107370.0,107360.0,0.00119038]
[1751152938953,1.32870067,107370.0,107360.0,0.00119038]
[1751152946828,1.32215202,107370.0,107360.0,0.00119038]
[1751152947032,1.32870001,107370.0,107360.0,0.00119038]
[1751152956714,1.01642912,107370.0,107360.0,0.00119038]
[1751152956922,1.32870001,107370.0,107360.0,0.00119038]
[1751152964280,1.31310001,107370.0,107360.0,0.00119038]
[1751152965317,1.32960001,107370.0,107360.0,0.00119038]
[1751152967954,1.31310001,107370.0,107360.0,0.00119038]
[1751152969895,1.32810001,107370.0,107360.0,0.00119038]
[1751152992791,1.01582912,107370.0,107360.0,0.00119038]
[1751152992998,1.32810001,107370.0,107360.0,0.00119038]
[1751153014710,1.01582912,107370.0,107360.0,0.00119038]
[1751153014918,1.32810001,107370.0,107360.0,0.00119038]
[1751153019695,1.01582912,107370.0,107360.0,0.00119038]
[1751153019941,1.32810001,107370.0,107360.0,0.00119038]
[1751153023777,1.34320001,107370.0,107360.0,0.00119038]
[1751153027134,1.32810001,107370.0,107360.0,0.00119038]
[1751153032873,1.6569709,107370.0,107360.0,0.00119038]
[1751153033308,1.34470001,107370.0,107360.0,0.00119038]
[1751153033707,1.6569709,107370.0,107360.0,0.00119038]
[1751153034376,1.34470001,107370.0,107360.0,0.00119038]
[1751153040444,1.67931497,107370.0,107360.0,0.00119038]
[1751153044410,1.6569709,107370.0,107360.0,0.00119038]
[1751153045224,1.34470001,107370.0,107360.0,0.00119038]
[1751153051399,1.36704366,107370.0,107360.0,0.00119038]
[1751153055334,1.35124366,107370.0,107360.0,0.00119038]
[1751153072955,1.66351455,107370.0,107360.0,0.00119038]
[1751153073710,1.35124366,107370.0,107360.0,0.00119038]
[1751153074492,1.66351455,107370.0,107360.0,0.00119038]
[1751153075196,1.35124366,107370.0,107360.0,0.00119038]
[1751153081273,1.34469567,107370.0,107360.0,0.00119038]
[1751153083448,1.65696656,107370.0,107360.0,0.00119038]
[1751153084891,1.71871244,107370.0,107360.0,0.00119038]
[1751153085052,1.65696656,107370.0,107360.0,0.00119038]
[1751153087168,1.03242478,107370.0,107360.0,0.00119038]
[1751153087400,1.34469567,107370.0,107360.0,0.00119038]
[1751153087851,1.03242478,107370.0,107360.0,0.00119038]
[1751153088074,1.34469567,107370.0,107360.0,0.00119038]
[1751153092134,1.32889567,107370.0,107360.0,0.00119038]
[1751153094803,1.33544251,107370.0,107360.0,0.00119038]
[1751153097911,1.02317162,107370.0,107360.0,0.00119038]
[1751153098197,1.33544251,107370.0,107360.0,0.00119038]
[1751153101284,1.02317162,107370.0,107360.0,0.00119038]
[1751153101492,1.33544251,107370.0,107360.0,0.00119038]
[1751153104014,1.35164251,107370.0,107360.0,0.00119038]
[1751153112595,1.03937162,107370.0,107360.0,0.00119038]
[1751153112818,1.02317162,107370.0,107360.0,0.00119038]
[1751153113031,1.33544251,107370.0,107360.0,0.00119038]
[1751153114116,0.83561162,107370.0,107360.0,0.01679038]
[1751153114324,0.81799362,107370.0,107360.0,0.03299038]
[1751153114535,1.03579767,107370.0,107360.0,0.03299038]
[1751153114747,1.07371767,107370.0,107360.0,0.04230483]
[1751153114948,1.07371767,107370.0,107360.0,0.03299038]
[1751153119625,1.10168267,107370.0,107360.0,0.03299038]
[1751153122378,1.25112267,107370.0,107360.0,0.03299038]
[1751153127093,1.25112267,107370.0,107360.0,0.01679038]
[1751153128043,1.25112267,107370.0,107360.0,0.00119038]
[1751153131336,1.26652267,107370.0,107360.0,0.00119038]
[1751153132393,1.29606352,107370.0,107360.0,0.00119038]
[1751153132617,1.614875,107370.0,107360.0,0.00119038]
[1751153132828,1.664875,107370.0,107360.0,0.00119038]
[1751153133047,1.75763508,107370.0,107360.0,0.00119038]
[1751153134228,1.664875,107370.0,107360.0,0.00119038]
[1751153136657,1.35260411,107370.0,107360.0,0.00119038]
[1751153145514,1.04033322,107370.0,107360.0,0.00119038]
[1751153145723,1.35260411,107370.0,107360.0,0.00119038]
[1751153155538,1.34606352,107370.0,107360.0,0.00119038]
[1751153158830,1.65833441,107370.0,107360.0,0.00119038]
[1751153161495,1.34606352,107370.0,107360.0,0.00119038]
[1751153163404,1.35260547,107370.0,107360.0,0.00119038]
[1751153163844,1.66487636,107370.0,107360.0,0.00119038]
[1751153164701,1.35260547,107370.0,107360.0,0.00119038]
[1751153166590,1.66487636,107370.0,107360.0,0.00119038]
[1751153167734,1.66488142,107370.0,107360.0,0.00119038]
[1751153168629,1.35261053,107370.0,107360.0,0.00119038]
[1751153173482,1.66488142,107370.0,107360.0,0.00119038]
[1751153174161,1.64988142,107370.0,107360.0,0.00119038]
[1751153174774,1.33761053,107370.0,107360.0,0.00119038]
[1751153177763,1.64988142,107370.0,107360.0,0.00119038]
[1751153184544,1.64988142,107370.0,107360.0,0.00119038]
[1751153203464,1.66578142,107370.0,107360.0,0.00119038]
[1751153204980,1.64988142,107370.0,107360.0,0.00119038]
[1751153206814,1.66578142,107370.0,107360.0,0.00119038]
[1751153207024,1.64988142,107370.0,107360.0,0.00119038]
[1751153207250,1.66578142,107370.0,107360.0,0.00119038]
[1751153208280,1.64988142,107370.0,107360.0,0.00119038]
[1751153209422,1.64988078,107370.0,107360.0,0.00119038]
[1751153218241,1.67372126,107370.0,107360.0,0.00119038]
[1751153218769,1.64988078,107370.0,107360.0,0.00119038]
[1751153234994,1.64987786,107370.0,107360.0,0.00119038]
[1751153242878,0.87589608,107370.0,107360.0,0.00119038]
[1751153243080,1.33764697,107370.0,107360.0,0.00119038]
[1751153247202,1.02537608,107370.0,107360.0,0.00119038]
[1751153247407,1.33764697,107370.0,107360.0,0.00119038]
[1751153252481,1.32224697,107370.0,107360.0,0.00119038]
[1751153258343,1.33724697,107370.0,107360.0,0.00119038]
[1751153268156,1.35294697,107370.0,107360.0,0.00119038]
[1751153270608,1.33724697,107370.0,107360.0,0.00119038]
[1751153272766,1.02497608,107370.0,107360.0,0.00119038]
[1751153272916,1.33724697,107370.0,107360.0,0.00119038]
[1751153307154,1.35957797,107370.0,107360.0,0.00119038]
[1751153326470,0.84787429,107360.0,107350.0,0.02984412]
[1751153326668,1.12803437,107360.0,107350.0,0.02984412]
[1751153331298,1.13728276,107360.0,107350.0,0.02984412]
[1751153335667,1.13728276,107360.0,107350.0,0.01444412]
[1751153341788,0.20493633,107350.0,107340.0,0.23635122]
[1751153342021,0.33561641,107350.0,107340.0,0.23635122]
[1751153342916,0.33561641,107350.0,107340.0,0.23835122]
[1751153343134,0.34493121,107350.0,107340.0,0.23835122]
[1751153343340,0.34493121,107350.0,107340.0,0.24035122]
[1751153353054,0.33561667,107350.0,107340.0,0.24035122]
[1751153364768,0.33561667,107350.0,107340.0,0.24966706]
[1751153366865,0.33561667,107350.0,107340.0,0.24035122]
[1751153367488,0.33561667,107350.0,107340.0,0.22415122]
[1751153371877,0.64788756,107350.0,107340.0,0.22415122]
[1751153372449,0.64788756,107350.0,107340.0,0.20895122]
[1751153373273,0.63857276,107350.0,107340.0,0.19963529]
[1751153377570,0.69114116,107350.0,107340.0,0.19963529]
[1751153379776,0.63857276,107350.0,107340.0,0.20895122]
[1751153381320,0.63857276,107350.0,107340.0,0.21826706]
[1751153381723,0.64788782,107350.0,107340.0,0.22758281]
[1751153386567,0.33561693,107350.0,107340.0,0.22758281]
[1751153386776,0.64788782,107350.0,107340.0,0.22758281]
[1751153390120,0.64788782,107350.0,107340.0,0.23689848]
[1751153397747,0.33561693,107350.0,107340.0,0.23689848]
[1751153402933,0.33561693,107350.0,107340.0,0.22758281]
[1751153403555,0.33561693,107350.0,107340.0,0.20895122]
[1751153403757,0.33561693,107350.0,107340.0,0.21826706]
[1751153405996,0.33561693,107350.0,107340.0,0.23689848]
[1751153420423,0.64788782,107350.0,107340.0,0.23689848]
[1751153422706,0.7406479,107350.0,107340.0,0.23689848]
[1751153424158,0.42837701,107350.0,107340.0,0.23689848]
[1751153424394,0.7406479,107350.0,107340.0,0.23689848]
[1751153425764,0.7406479,107350.0,107340.0,0.23689805]
[1751153425965,0.55434143,107350.0,107340.0,0.23689805]
[1751153426160,0.46158135,107350.0,107340.0,0.23689805]
[1751153427979,0.14931046,107350.0,107340.0,0.23689805]
[1751153428187,0.15862509,107350.0,107340.0,0.23689805]
[1751153428426,0.16794032,107350.0,107340.0,0.23689805]
[1751153428644,0.15862509,107350.0,107340.0,0.23689805]
[1751153429008,0.16794032,107350.0,107340.0,0.23689805]
[1751153429880,0.17725564,107350.0,107340.0,0.23689805]
[1751153430084,0.17725564,107350.0,107340.0,0.21826707]
[1751153432730,0.17725564,107350.0,107340.0,0.22758265]
[1751153437230,0.48952653,107350.0,107340.0,0.22758265]
[1751153438912,0.48021121,107350.0,107340.0,0.22758265]
[1751153439119,0.16794032,107350.0,107340.0,0.22758265]
[1751153439385,0.48021121,107350.0,107340.0,0.22758265]
[1751153440229,0.16794032,107350.0,107340.0,0.22758265]
[1751153443477,0.49641121,107350.0,107340.0,0.22758265]
[1751153445357,0.18414032,107350.0,107340.0,0.22758265]
[1751153449665,0.2769004,107350.0,107340.0,0.22758265]
[1751153451707,0.18414032,107350.0,107340.0,0.22758265]
[1751153456329,0.16794032,107350.0,107340.0,0.22758265]
[1751153486270,0.35424679,107350.0,107340.0,0.22758265]
[1751153486516,0.691433,107350.0,107340.0,0.22758265]
[1751153488958,0.50512653,107350.0,107340.0,0.22758265]
[1751153495983,0.55163394,107350.0,107340.0,0.22758265]
[1751153496192,0.54231862,107350.0,107340.0,0.22758265]
[1751153496847,0.49581121,107350.0,107340.0,0.22758265]
[1751153509198,0.50512653,107350.0,107340.0,0.22758265]
[1751153513511,0.49581121,107350.0,107340.0,0.22758265]
[1751153516162,0.50512653,107350.0,107340.0,0.22758265]
[1751153518016,0.19285564,107350.0,107340.0,0.22758265]
[1751153528934,0.18354032,107350.0,107340.0,0.22758265]
[1751153532078,0.19285564,107350.0,107340.0,0.22758265]
[1751153538259,0.17422509,107350.0,107340.0,0.22758265]
[1751153539469,0.18354032,107350.0,107340.0,0.22758265]
[1751153539677,0.19285564,107350.0,107340.0,0.21826707]
[1751153541221,0.36984731,107350.0,107340.0,0.21826724]
[1751153541789,0.36984731,107350.0,107340.0,0.22758299]
[1751153544075,0.36984731,107350.0,107340.0,0.23689866]
[1751153544360,0.36984731,107350.0,107340.0,0.23689805]
[1751153545053,0.18354084,107350.0,107340.0,0.23689805]
[1751153550949,0.18354084,107350.0,107340.0,0.22758247]
[1751153556160,0.36984731,107350.0,107340.0,0.22758247]
[1751153556363,0.36984731,107350.0,107340.0,0.2182668]
[1751153560350,0.36984731,107350.0,107340.0,0.22758247]
[1751153564863,0.10207462,107350.0,107340.0,0.57015336]
[1751153565126,0.15858448,107350.0,107340.0,0.57946894]
[1751153566155,0.15858448,107350.0,107340.0,0.56436894]
[1751153570535,0.15858448,107350.0,107340.0,0.54916894]
[1751153577309,0.15858439,107350.0,107340.0,0.54916894]
[1751153579923,0.16789945,107350.0,107340.0,0.54916894]
[1751153580740,0.16789945,107350.0,107340.0,0.23689805]
[1751153580941,0.16789945,107350.0,107340.0,0.54916894]
[1751153587238,0.16789945,107350.0,107340.0,0.23689805]
[1751153587444,0.16789945,107350.0,107340.0,0.54916894]
[1751153589761,0.15858439,107350.0,107340.0,0.54916894]
[1751153592760,0.16789945,107350.0,107340.0,0.54916894]
[1751153596736,0.16789945,107350.0,107340.0,0.23689805]
[1751153596940,0.16789945,107350.0,107340.0,0.54916894]
[1751153598236,0.15858439,107350.0,107340.0,0.54916894]
[1751153599686,0.48605528,107350.0,107340.0,0.23689805]
[1751153600026,0.19949954,107350.0,107340.0,0.54916894]
[1751153600194,0.19949954,107350.0,107340.0,0.23689805]
[1751153601842,0.19949954,107350.0,107340.0,0.54916894]
[1751153602974,0.19018439,107350.0,107340.0,0.54916894]
[1751153603216,0.19949954,107350.0,107340.0,0.54916894]
[1751153606085,0.18309954,107350.0,107340.0,0.54916894]
[1751153606720,0.18309945,107350.0,107340.0,0.54916894]
[1751153607376,0.1924146,107350.0,107340.0,0.54916894]
[1751153618929,0.19241529,107350.0,107340.0,0.54916894]
[1751153619133,0.37872176,107350.0,107340.0,0.22758247]
[1751153619295,0.37872176,107350.0,107340.0,0.68925336]
[1751153619887,0.37872176,107350.0,107340.0,0.69856894]
[1751153620127,0.39462176,107350.0,107340.0,0.69856894]
[1751153620336,0.20831529,107350.0,107340.0,0.69856894]
[1751153622683,0.19241529,107350.0,107340.0,0.38629805]
[1751153623917,0.50468618,107350.0,107340.0,0.38629805]
[1751153627694,0.68167785,107350.0,107340.0,0.2089514]
[1751153627904,0.79013793,107350.0,107340.0,0.2089514]
[1751153628115,0.68806288,107350.0,107340.0,0.35835148]
[1751153628319,0.68806288,107350.0,107340.0,0.004]
[1751153628510,1.03328867,107350.0,107340.0,0.004]
[1751153628651,1.06126167,107350.0,107340.0,0.004]
[1751153629310,0.74899078,107350.0,107340.0,0.004]
[1751153629551,1.06126167,107350.0,107340.0,0.004]
[1751153629752,1.06126167,107350.0,107340.0,0.002]
[1751153630117,0.19563984,107340.0,107330.0,0.00931705]
[1751153630342,0.04374968,107330.0,107320.0,0.46558357]
[1751153630520,0.17438976,107330.0,107320.0,0.46558357]
[1751153631102,0.18370655,107330.0,107320.0,0.46558357]
[1751153631556,0.18370655,107330.0,107320.0,0.77831335]
[1751153633177,0.18370655,107330.0,107320.0,0.46604246]
[1751153633483,0.18370655,107330.0,107320.0,0.77831335]
[1751153636881,0.17438967,107330.0,107320.0,0.77831335]
[1751153641514,0.18370655,107330.0,107320.0,0.77831335]
[1751153642318,0.17438967,107330.0,107320.0,0.77831335]
[1751153642906,0.18370655,107330.0,107320.0,0.77831335]
[1751153643479,0.18370655,107330.0,107320.0,0.46604246]
[1751153644717,0.17438967,107330.0,107320.0,0.46604246]
[1751153646545,0.18370655,107330.0,107320.0,0.46604246]
[1751153649390,0.17438967,107330.0,107320.0,0.46604246]
[1751153650867,0.18370655,107330.0,107320.0,0.46604246]
[1751153654616,0.17438967,107330.0,107320.0,0.46604246]
[1751153654996,0.17438959,107330.0,107320.0,0.46604246]
[1751153657848,0.14927288,107330.0,107320.0,0.46604246]
[1751153658132,0.14927288,107330.0,107320.0,0.77831335]
[1751153659744,0.15858959,107330.0,107320.0,0.77831335]
[1751153660974,0.11139288,107330.0,107320.0,0.77831335]
[1751153661210,0.1207095,107330.0,107320.0,0.77831335]
[1751153663080,0.09276008,107330.0,107320.0,0.77831335]
[1751153663288,0.11139297,107330.0,107320.0,0.77831335]
[1751153663505,0.11465471,107330.0,107320.0,0.46604246]
[1751153663714,0.01863289,107330.0,107320.0,0.77831335]
[1751153664285,0.01863281,107330.0,107320.0,0.77831335]
[1751153666712,0.01863281,107330.0,107320.0,0.46604246]
[1751153666966,0.01863281,107330.0,107320.0,0.77831335]
[1751153669162,0.28345233,107340.0,107330.0,0.21429156]
[1751153669369,0.6884833,107340.0,107330.0,0.21429156]
[1751153669584,0.6884833,107340.0,107330.0,0.20497503]
[1751153669808,0.6884833,107340.0,107330.0,0.21429174]
[1751153670007,0.6884833,107340.0,107330.0,0.22360836]
[1751153671985,0.6904833,107340.0,107330.0,0.22360836]
[1751153672186,0.37821241,107340.0,107330.0,0.23292489]
[1751153672392,0.6904833,107340.0,107330.0,0.23292489]
[1751153676569,0.6904833,107340.0,107330.0,0.22360836]
[1751153681061,0.17592838,107340.0,107330.0,0.54519578]
[1751153681262,0.17592838,107340.0,107330.0,0.23292489]
[1751153681388,0.48819927,107340.0,107330.0,0.23292489]
[1751153689730,0.36225221,107340.0,107330.0,0.23292489]
[1751153690553,0.6745231,107340.0,107330.0,0.23292489]
[1751153703033,0.6745231,107340.0,107330.0,0.22360836]
[1751153722528,0.6745231,107340.0,107330.0,0.23292489]
[1751153724130,0.36225221,107340.0,107330.0,0.23292489]
[1751153726126,0.36225221,107340.0,107330.0,0.23292429]
[1751153727317,0.17592838,107340.0,107330.0,0.23292429]
[1751153739879,0.36225221,107340.0,107330.0,0.20497469]
[1751153740090,0.36225221,107340.0,107330.0,0.21429174]
[1751153740209,0.36225221,107340.0,107330.0,0.22360836]
[1751153740934,0.36225221,107340.0,107330.0,0.23292489]
[1751153742424,0.6745231,107340.0,107330.0,0.23292489]
[1751153758473,0.36225221,107340.0,107330.0,0.23292489]
[1751153758682,0.6745231,107340.0,107330.0,0.23292489]
[1751153759804,0.48819927,107340.0,107330.0,0.23292429]
[1751153772230,0.17592838,107340.0,107330.0,0.23292429]
[1751153772441,0.48819927,107340.0,107330.0,0.23292429]
[1751153778935,0.17592838,107340.0,107330.0,0.23292429]
[1751153779140,0.48819927,107340.0,107330.0,0.23292429]
[1751153780194,0.6745231,107340.0,107330.0,0.22360784]
[1751153780394,0.36225221,107340.0,107330.0,0.22360784]
[1751153780609,0.6745231,107340.0,107330.0,0.22360784]
[1751153785048,0.48819927,107340.0,107330.0,0.23292429]
[1751153788668,0.48819927,107340.0,107330.0,0.22360784]
[1751153791096,0.6745231,107340.0,107330.0,0.22360784]
[1751153803154,0.6745231,107340.0,107330.0,0.20497469]
[1751153803401,0.6897231,107340.0,107330.0,0.21429131]
[1751153814872,0.68040709,107340.0,107330.0,0.20497503]
[1751153820930,0.3681362,107340.0,107330.0,0.20497503]
[1751153821170,0.68040709,107340.0,107330.0,0.20497503]
[1751153823596,0.68040709,107340.0,107330.0,0.21429174]
[1751153826516,0.6617748,107340.0,107330.0,0.19565824]
[1751153826750,0.6617748,107340.0,107330.0,0.20497521]
[1751153828790,0.6617748,107340.0,107330.0,0.21429209]
[1751153829679,0.6617748,107340.0,107330.0,0.20497521]
[1751153829918,0.00931679,107330.0,107320.0,0.4964222]
[1751153830056,0.01863367,107330.0,107320.0,0.79937595]
[1751153831166,0.02795038,107330.0,107320.0,0.79937595]
[1751153831373,0.037267,107330.0,107320.0,0.79937595]
[1751153831583,0.532167,107330.0,107320.0,0.79937595]
[1751153831796,0.532167,107330.0,107320.0,0.78427595]
[1751153832964,1.11422254,107330.0,107320.0,0.45692585]
[1751153833147,1.12932254,107330.0,107320.0,0.45692585]
[1751153833390,1.12638904,107330.0,107320.0,0.44760853]
[1751153833602,1.12638904,107330.0,107320.0,0.45692611]
[1751153835312,1.12638904,107330.0,107320.0,0.4662436]
[1751153836377,1.11068904,107330.0,107320.0,0.475561]
[1751153837081,0.9336649,107330.0,107320.0,0.475561]
[1751153837290,0.9336649,107330.0,107320.0,0.47556047]
[1751153837495,0.4387649,107330.0,107320.0,0.47556047]
[1751153842698,0.4236649,107330.0,107320.0,0.47556047]
[1751153843240,0.4236649,107330.0,107320.0,0.46624316]
[1751153843648,0.4394649,107330.0,107320.0,0.46624316]
[1751153844614,0.4773849,107330.0,107320.0,0.46624316]
[1751153849685,0.66372609,107330.0,107320.0,0.46624316]
[1751153850110,0.66372609,107330.0,107320.0,0.45692576]
[1751153850533,0.66372609,107330.0,107320.0,0.44760827]
[1751153851096,0.66372609,107330.0,107320.0,0.44760835]
[1751153853026,0.66372609,107330.0,107320.0,0.45692593]
[1751153854813,0.66372609,107330.0,107320.0,0.43829069]
[1751153855022,0.65440921,107330.0,107320.0,0.43829069]
[1751153859787,0.65440921,107330.0,107320.0,0.44760835]
[1751153861623,0.65440921,107330.0,107320.0,0.43829069]
[1751153866083,0.64509216,107330.0,107320.0,0.43829069]
[1751153866521,0.65963301,107330.0,107320.0,0.09301439]
[1751153866756,0.82513301,107330.0,107320.0,0.09301439]
[1751153868653,0.83167211,107330.0,107320.0,0.09301439]
[1751153869081,0.51940122,107330.0,107320.0,0.09301439]
[1751153869310,0.82513301,107330.0,107320.0,0.09301439]
[1751153889920,0.51286212,107330.0,107320.0,0.09301439]
[1751153890123,0.82513301,107330.0,107320.0,0.09301439]
[1751153891380,0.51286212,107330.0,107320.0,0.09301439]
[1751153891621,0.82513301,107330.0,107320.0,0.09301439]
[1751153894310,0.83166959,107330.0,107320.0,0.09301439]
[1751153906086,0.5034987,107330.0,107320.0,0.09301439]
[1751153906308,0.81576959,107330.0,107320.0,0.09301439]
[1751153911367,0.83076959,107330.0,107320.0,0.09301439]
[1751153916851,0.81576959,107330.0,107320.0,0.09301439]
[1751153931794,0.80923301,107330.0,107320.0,0.09301439]
[1751153940881,0.49696212,107330.0,107320.0,0.09301439]
[1751153941121,0.80923301,107330.0,107320.0,0.09301439]
[1751153942514,0.81577574,107330.0,107320.0,0.09301439]
[1751153947216,0.80013574,107330.0,107320.0,0.09301439]
[1751153958253,0.81523574,107330.0,107320.0,0.09301439]
[1751153980556,0.1400767,107330.0,107320.0,0.65139656]
[1751153980758,0.15870985,107330.0,107320.0,0.65139656]
[1751153980984,0.16802673,107330.0,107320.0,0.65139656]
[1751153981405,0.16802673,107330.0,107320.0,0.33912567]
[1751153982194,0.16798673,107330.0,107320.0,0.33912567]
[1751153983207,0.36364489,107330.0,107320.0,0.32980836]
[1751153983414,0.1773037,107330.0,107320.0,0.34844307]
[1751153984953,0.1773037,107330.0,107320.0,0.49804307]
[1751153985162,0.17730439,107330.0,107320.0,0.49804307]
[1751153986510,0.48957528,107330.0,107320.0,0.49804307]
[1751153986688,0.48957528,107330.0,107320.0,0.48872576]
[1751153987338,0.67591647,107330.0,107320.0,0.48872576]
[1751153989165,0.66659985,107330.0,107320.0,0.48872576]
[1751153991002,0.65728306,107330.0,107320.0,0.46390836]
[1751153992516,0.64796618,107330.0,107320.0,0.45459078]
[1751153992751,0.64796618,107330.0,107320.0,0.46390853]
[1751153993596,0.64796618,107330.0,107320.0,0.45692619]
[1751153995564,0.67084921,107330.0,107320.0,0.43829078]
[1751153996048,0.65494921,107330.0,107320.0,0.44760853]
[1751153996667,0.63864921,107330.0,107320.0,0.45692619]
[1751154002678,0.63864921,107330.0,107320.0,0.44760853]
[1751154005847,0.32637832,107330.0,107320.0,0.44760853]
[1751154006068,0.63864921,107330.0,107320.0,0.45692619]
[1751154011117,0.63864921,107330.0,107320.0,0.44760853]
[1751154016067,0.63864921,107330.0,107320.0,0.45692619]
[1751154034840,0.63864921,107330.0,107320.0,0.46624377]
[1751154038986,0.32637832,107330.0,107320.0,0.46624377]
[1751154039225,0.63864921,107330.0,107320.0,0.47556126]
[1751154053215,0.63864921,107330.0,107320.0,0.46624377]
[1751154060238,0.63864921,107330.0,107320.0,0.47556126]
[1751154062878,0.63864921,107330.0,107320.0,0.46624377]
[1751154065738,0.32637832,107330.0,107320.0,0.46624377]
[1751154065922,0.63864921,107330.0,107320.0,0.47556126]
[1751154074458,0.63864921,107330.0,107320.0,0.46624377]
[1751154088690,0.63864921,107330.0,107320.0,0.47556126]
[1751154091599,0.65404921,107330.0,107320.0,0.47556126]
[1751154091810,0.65404921,107330.0,107320.0,0.45692619]
[1751154093038,0.65404921,107330.0,107320.0,0.46624377]
[1751154097722,0.65404921,107330.0,107320.0,0.45692619]
[1751154104462,0.34177832,107330.0,107320.0,0.46624377]
[1751154104676,0.65404921,107330.0,107320.0,0.46624377]
[1751154109079,0.47702481,107330.0,107320.0,0.47556126]
[1751154109322,0.47702481,107330.0,107320.0,0.47556073]
[1751154109762,0.47702429,107330.0,107320.0,0.47556073]
[1751154109960,0.48634117,107330.0,107320.0,0.47556073]
[1751154111738,0.49565814,107330.0,107320.0,0.47556073]
[1751154130244,0.17407028,107330.0,107320.0,0.47556073]
[1751154130444,0.48634117,107330.0,107320.0,0.47556073]
[1751154136069,0.18338725,107330.0,107320.0,0.47556073]
[1751154136278,0.49565814,107330.0,107320.0,0.47556073]
[1751154138159,0.48634117,107330.0,107320.0,0.47556073]
[1751154153299,0.17407028,107330.0,107320.0,0.47556073]
[1751154153506,0.48634117,107330.0,107320.0,0.47556073]
[1751154154158,0.17407028,107330.0,107320.0,0.47556073]
[1751154154358,0.48634117,107330.0,107320.0,0.47556073]
[1751154155173,0.17407028,107330.0,107320.0,0.47556073]
[1751154155376,0.48634117,107330.0,107320.0,0.47556073]
[1751154163849,0.49565814,107330.0,107320.0,0.47556073]
[1751154168826,0.48634117,107330.0,107320.0,0.47556073]
[1751154193885,0.17407028,107330.0,107320.0,0.47556073]
[1751154194019,0.48634117,107330.0,107320.0,0.47556073]
[1751154198654,0.47702429,107330.0,107320.0,0.47556073]
[1751154205053,0.48634117,107330.0,107320.0,0.47556073]
[1751154212214,0.47702429,107330.0,107320.0,0.47556073]
[1751154212437,0.48634056,107330.0,107320.0,0.47556073]
[1751154213953,0.49565744,107330.0,107320.0,0.47556073]
[1751154219064,0.50497441,107330.0,107320.0,0.47556073]
[1751154223133,0.50497519,107330.0,107320.0,0.47556073]
[1751154242824,0.50497519,107330.0,107320.0,0.47457838]
[1751154244312,0.49565814,107330.0,107320.0,0.47457838]
[1751154254803,0.50497519,107330.0,107320.0,0.47457838]
[1751154256819,0.50497519,107330.0,107320.0,0.46526107]
[1751154257438,0.68199985,107330.0,107320.0,0.46526107]
[1751154259467,0.68199985,107330.0,107320.0,0.47457847]
[1751154263954,0.49565866,107330.0,107320.0,0.47457847]
[1751154264267,0.49565866,107330.0,107320.0,0.47457803]
[1751154268899,0.49565866,107330.0,107320.0,0.46526072]
[1751154269663,0.68199985,107330.0,107320.0,0.46526072]
[1751154276619,0.36972896,107330.0,107320.0,0.46526072]
[1751154276835,0.68199985,107330.0,107320.0,0.46526072]
[1751154277978,0.67268306,107330.0,107320.0,0.45594332]
[1751154279829,0.67268306,107330.0,107320.0,0.44662583]
[1751154280039,0.66336618,107330.0,107320.0,0.44662583]
[1751154282565,0.66336618,107330.0,107320.0,0.45594332]
[1751154283178,0.66336618,107330.0,107320.0,0.44662583]
[1751154286711,0.66336618,107330.0,107320.0,0.45594332]
[1751154302464,0.35109529,107330.0,107320.0,0.46526072]
[1751154302592,0.1647541,107330.0,107320.0,0.47457803]
[1751154302785,0.47702499,107330.0,107320.0,0.47457803]
[1751154303286,0.46162499,107330.0,107320.0,0.47457803]
[1751154306888,0.46162465,107330.0,107320.0,0.47457803]
[1751154322268,0.42366465,107330.0,107320.0,0.47457803]
[1751154322481,0.46158465,107330.0,107320.0,0.47457803]
[1751154327520,0.3555,107340.0,107330.0,0.20497469]
[1751154327719,0.48931132,107340.0,107330.0,0.52656203]
[1751154327925,0.49862725,107340.0,107330.0,0.52656203]
[1751154328354,0.49862725,107340.0,107330.0,0.21429114]
[1751154328554,0.50794326,107340.0,107330.0,0.21429114]
[1751154329433,0.47002326,107340.0,107330.0,0.21429114]
[1751154329642,0.50794326,107340.0,107330.0,0.21429114]
[1751154330566,0.82221415,107340.0,107330.0,0.21429114]
[1751154330793,0.81289814,107340.0,107330.0,0.21429114]
[1751154331026,0.82221415,107340.0,107330.0,0.21429114]
[1751154332124,0.83153025,107340.0,107330.0,0.21429114]
[1751154334699,0.51925936,107340.0,107330.0,0.21429114]
[1751154334922,0.83153025,107340.0,107330.0,0.21429114]
[1751154335563,0.84693025,107340.0,107330.0,0.21429114]
[1751154337074,0.86263025,107340.0,107330.0,0.21429114]
[1751154337504,0.86263095,107340.0,107330.0,0.21429114]
[1751154337838,1.03963903,107340.0,107330.0,0.20497486]
[1751154338445,1.02100709,107340.0,107330.0,0.18634119]
[1751154338592,1.02100709,107340.0,107330.0,0.19565824]
[1751154338801,1.33327798,107340.0,107330.0,0.00931705]
[1751154339039,1.32396188,107340.0,107330.0,0.00931705]
[1751154343197,0.01863324,107330.0,107320.0,0.45594262]
[1751154343412,0.5265622,107330.0,107320.0,0.44662601]
[1751154343611,0.35885477,107330.0,107320.0,0.46526081]
[1751154344028,0.33090405,107330.0,107320.0,0.46526081]
[1751154345778,0.33090396,107330.0,107320.0,0.46526081]
[1751154347056,0.34022075,107330.0,107320.0,0.46526081]
[1751154347262,0.33090396,107330.0,107320.0,0.46526081]
[1751154347474,0.32158734,107330.0,107320.0,0.46526081]
[1751154347681,0.33090396,107330.0,107320.0,0.46526081]
[1751154348104,0.33090387,107330.0,107320.0,0.46526081]
[1751154348729,0.01863298,107330.0,107320.0,0.46526081]
[1751154349152,0.51353298,107330.0,107320.0,0.46526081]
[1751154349843,0.52284969,107330.0,107320.0,0.46526081]
[1751154350867,0.51353298,107330.0,107320.0,0.46526081]
[1751154351079,0.5607296,107330.0,107320.0,0.46526081]
[1751154360397,0.57004639,107330.0,107320.0,0.46526081]
[1751154360985,0.57936327,107330.0,107320.0,0.46526081]
[1751154361528,0.88231728,107330.0,107320.0,0.46526081]
[1751154365415,0.57004631,107330.0,107320.0,0.46526081]
[1751154367924,0.5607296,107330.0,107320.0,0.46526081]
[1751154368336,0.57004639,107330.0,107320.0,0.46526081]
[1751154368540,0.5607296,107330.0,107320.0,0.46526081]
[1751154368747,0.57004639,107330.0,107320.0,0.46526081]
[1751154368948,0.57004631,107330.0,107320.0,0.46526081]
[1751154372811,0.5793631,107330.0,107320.0,0.46526081]
[1751154374114,0.57936353,107330.0,107320.0,0.46526081]
[1751154374950,0.57004665,107330.0,107320.0,0.46526081]
[1751154376175,0.56072986,107330.0,107320.0,0.46526081]
[1751154377353,0.57004674,107330.0,107320.0,0.46526081]
[1751154377889,0.56072986,107330.0,107320.0,0.46526081]
[1751154380740,0.57004665,107330.0,107320.0,0.46526081]
[1751154381172,0.56072986,107330.0,107320.0,0.46526081]